[Event "XXIV San Miguel 2018"]
[Site "Trevias"]
[Date "2018.09.22"]
[Round "6"]
[White "Suarez Fernandez, Pablo"]
[Black "Garcia Gonzalez, Fernando"]
[Result "1-0"]
[ECO "B01"]
[WhiteElo "2084"]
[BlackElo "2027"]
[Annotator "NA RC"]
[PlyCount "63"]
[EventDate "2018.09.17"]
[EventType "swiss"]
[EventCountry "ESP"]
[SourceTitle "playchess.com"]
[Source "ChessBase"]
[SourceQuality "1"]
[TimeControl "5400+30"]

{[%evp 8,63,-11,-10,-3,-10,19,27,33,26,32767,14,44,29,39,33,81,72,75,77,87,80,72,77,82,63,101,97,100,56,58,37,25,25,215,229,217,232,233,233,327,32767,32767,32767,32767,545,557,564,933,355,381,371,586,636,825,930,1945,5206]} 1. e4 {[%emt 0:00:00]} d5 {[%emt 0:00:00]} 2. Nc3 {[%emt 0:00:00]} d4 3. Nce2 {[%emt 0:02:23]} c5 {[%emt 0:01:43]} 4. Ng3 {[%emt 0:00:09]} Nc6 {[%emt 0:00:30] LiveBook: 39 Games} 5. Bc4 {[%emt 0:00:46]} Nf6 {[%emt 0:03:45] A00: Irregular Openings} (5... a6 6. d3 e6 7. a4 Bd6 8. f4 e5 9. f5 Nf6 10. Nh5 g6 11. Ng7+ Ke7 12. Nh3 Rg8 13. Bh6 gxf5 {0-1 (48) Andreikin,D (2720)-Svidler,P (2727) Berlin 2015}) 6. d3 {[%emt 0:00:21]} h5 {[%emt 0:01:21]} 7. h3 {[%emt 0:05:32]} h4 {[%emt 0:06:13]} 8. N3e2 {[%emt 0:01:21]} b5 {[%emt 0:11:16]} 9. Bb3 $1 {[%emt 0:02:22]} Bb7 $146 {[%emt 0:10:14]} ({Predecessor:} 9... c4 10. dxc4 bxc4 11. Bxc4 Nxe4 12. Nf3 Qa5+ 13. c3 dxc3 {½-½ (57) Bakalar,J (2128)-Foltyn,L (2027) Frydek Mistek 2010}) 10. Nf3 {[%emt 0:03:08]} e6 {[%emt 0:03:38]} 11. Bg5 {[%emt 0:04:49]} Qc7 {[%emt 0:01:48]} 12. a4 {[%emt 0:13:38]} a6 {[%emt 0:02:18]} 13. axb5 {[%emt 0:03:09]} axb5 {[%emt 0:01:57]} 14. Rxa8+ {[%emt 0:00:06]} Bxa8 {[%emt 0:01:42]} 15. O-O {[%emt 0:13:15]} ({Inferior is} 15. Nxh4 {[#]} c4 $1 $17 {[%mdl 512]}) 15... Bd6 {[%emt 0:06:38]} 16. Qd2 {[%emt 0:13:45]} Nh5 {[%emt 0:07:08]} 17. Ra1 {[%emt 0:03:15]} Bb7 {[%emt 0:01:57]} 18. Bxh4 {[%emt 0:08:56]} Nf4 {[%emt 0:05:33]} 19. Nxf4 {[%emt 0:00:40]} Bxf4 {[%emt 0:12:26]} 20. Qe1 {[%emt 0:01:10]} g5 $2 {[%emt 0:07:23]} (20... Ne5 $11 21. Nxe5 Bxe5) 21. Bxg5 {[%emt 0:04:17]} Bxg5 {[%emt 0:07:35]} 22. Nxg5 {[%emt 0:00:22]} Qf4 {[%emt 0:06:20]} 23. Qc1 {[%emt 0:02:10]} Qf6 {[%emt 0:00:11]} (23... Qxc1+ {keeps fighting.} 24. Rxc1 Ke7) 24. f4 {[%emt 0:03:38]} c4 {[%emt 0:01:59]} 25. dxc4 {[%emt 0:05:32]} d3 {[%emt 0:02:29]} 26. cxd3 {[%emt 0:07:52]} Qd4+ {[%emt 0:01:02]} 27. Kh1 {[%emt 0:00:53]} Qxd3 {[%emt 0:00:35]} 28. Qc3 $2 {[%emt 0:00:44]} (28. cxb5 Nd8 29. Ba4) 28... Qxc3 {[%emt 0:04:45]} 29. bxc3 {[%emt 0:01:14]} b4 {[%emt 0:03:28]} (29... bxc4 $142 30. Bxc4 Ke7) 30. cxb4 {[%emt 0:01:24]} Nd4 {[%emt 0:01:29]} 31. Ra7 {[%emt 0:01:31]} Bc8 {[%emt 0:00:46]} 32. Ba4+ $18 {[%emt 0:00:58]} 1-0

[Event "XXIV San Miguel 2018"]
[Site "Trevias"]
[Date "2018.09.22"]
[Round "6"]
[White "Vergara Anton, Diego"]
[Black "Perez Nunez, Saul"]
[Result "1/2-1/2"]
[ECO "E06"]
[WhiteElo "2063"]
[BlackElo "2182"]
[Annotator "ChessBase"]
[PlyCount "31"]
[EventDate "2018.09.17"]
[EventType "swiss"]
[EventCountry "ESP"]
[SourceTitle "playchess.com"]
[Source "ChessBase"]
[SourceQuality "1"]
[TimeControl "5400+30"]

1. d4 {[%emt 0:00:02]} d5 {[%emt 0:00:00]} 2. Nf3 {[%emt 0:00:12]} e6 {[%emt 0:00:00]} 3. c4 {[%emt 0:00:13]} Nf6 {[%emt 0:00:39]} 4. g3 {[%emt 0:01:01]} Be7 {[%emt 0:00:10]} 5. Bg2 {[%emt 0:00:05]} O-O 6. O-O {[%emt 0:00:09]} dxc4 {[%emt 0:00:10]} 7. Qc2 {[%emt 0:00:43]} a6 {[%emt 0:00:08]} 8. Qxc4 {[%emt 0:01:13]} b5 9. Qc2 {[%emt 0:01:38]} Bb7 {[%emt 0:00:16]} 10. Nc3 Nbd7 {[%emt 0:00:30]} 11. Rd1 b4 {[%emt 0:00:30]} 12. Na4 Be4 {[%emt 0:00:30]} 13. Qb3 Bd5 {[%emt 0:00:30]} 14. Qc2 Be4 {[%emt 0:00:30]} 15. Qb3 Bd5 {[%emt 0:00:30]} 16. Qc2 1/2-1/2

[Event "XXIV San Miguel 2018"]
[Site "Trevias"]
[Date "2018.09.22"]
[Round "6"]
[White "Estrada Martinez, Cesar"]
[Black "Gonzalez Guedes, Iyan"]
[Result "0-1"]
[ECO "A29"]
[WhiteElo "2010"]
[BlackElo "1927"]
[Annotator "NA RC"]
[PlyCount "128"]
[EventDate "2018.09.17"]
[EventType "swiss"]
[EventCountry "ESP"]
[SourceTitle "playchess.com"]
[Source "ChessBase"]
[SourceQuality "1"]
[TimeControl "5400+30"]

1. c4 e5 2. Nc3 Nc6 3. Nf3 Nf6 4. g3 Bc5 5. d3 d5 6. cxd5 Nxd5 7. Bg2 O-O 8. O-O h6 9. Bd2 {A29: English Opening: Four Knights Variation with 4 g3} Be6 10. Rc1 Be7 11. Ne4 f5 12. Nc5 Bxc5 $1 13. Rxc5 Qd6 14. Rc1 e4 $146 ({Predecessor:} 14... Rad8 15. a3 a5 16. Qc2 Rfe8 {1-0 (42) Lehner,O (2416)-Matt,F (2053) Oberwart 2010}) 15. Ne1 Qe5 16. Bc3 Nxc3 17. bxc3 Rad8 18. Qc2 Bd5 19. Qa4 a6 20. d4 (20. dxe4 $11 fxe4 21. Nc2) 20... Qf6 21. Nc2 b5 22. Qa3 a5 23. Ne3 Bf7 24. Qc5 b4 25. d5 Ne7 26. c4 Qd6 27. Qxd6 cxd6 28. Nc2 Rc8 29. Nd4 Rc5 30. Nb5 Nxd5 31. Nxd6 Nc3 32. Rfe1 Bxc4 33. Nxc4 Rxc4 34. Rc2 a4 35. e3 b3 36. axb3 axb3 37. Rb2 Rb8 38. Bf1 Rc5 39. Ra1 Nd5 40. Ra3 Rc3 41. Ra5 Rc2 42. Rb1 b2 43. Rxd5 Rc1 44. Rd1 Rxd1 45. Rxd1 b1=Q 46. Rxb1 Rxb1 47. Kg2 Rb2 48. Bc4+ Kf8 49. h4 Ke7 50. h5 Kf6 51. Bd5 Rd2 52. Bc6 Rd8 53. g4 Rd6 54. Bb7 fxg4 55. Bxe4 Kg5 56. Kg3 Rf6 57. Bg6 Rf3+ 58. Kg2 Rh3 59. Be8 Rxh5 60. Bxh5 Kxh5 61. Kg3 Kg5 62. e4 h5 63. f4+ gxf3 64. Kxf3 Kf6 0-1